fUSD/lending_fUSD_20240728
["ID","MTS","AMOUNT","RATE_DAILY","PERIOD"]
[333444062,1722129032392,-501.3,0.00010958,2]
[333444063,1722129032401,-501.3,0.00010958,2]
[333444064,1722129032410,-501.3,0.00010958,2]
[333444065,1722129032419,-501.3,0.00010958,2]
[333444066,1722129032428,-501.3,0.00010958,2]
[333444067,1722129032438,-716.01,0.00010958,2]
[333444068,1722129032447,-716.01,0.00010958,2]
[333444069,1722129032456,-716.01,0.00010958,2]
[333444070,1722129032465,-716.01,0.00010958,2]
[333444071,1722129032475,-716.01,0.00010958,2]
[333444072,1722129032484,-716.01,0.00010958,2]
[333444073,1722129032494,-500.0,0.00010958,2]
[333444074,1722129032503,-500.0,0.00010958,2]
[333444075,1722129032512,-500.0,0.00010958,2]
[333444076,1722129032522,-500.0,0.00010958,2]
[333444077,1722129032532,-500.0,0.00010958,2]
[333444078,1722129032541,-500.0,0.00010958,2]
[333444079,1722129032551,-500.0,0.00010958,2]
[333444080,1722129032561,-500.0,0.00010958,2]
[333444081,1722129032571,-500.0,0.00010958,2]
[333444082,1722129032580,-500.0,0.00010958,2]
[333444083,1722129032590,-500.0,0.00010958,2]
[333444084,1722129032600,-500.0,0.00010958,2]
[333444085,1722129032610,-463.4202856,0.00010958,2]
[333444086,1722129032619,-509.82,0.00010958,2]
[333444087,1722129032629,-500.0,0.00010958,2]
[333444088,1722129032639,-241.97,0.00010958,2]
[333444089,1722129032649,-500.0,0.00010958,2]
[333444090,1722129032658,-500.0,0.00010958,2]
[333444091,1722129032667,-500.0,0.00010958,2]
[333444092,1722129032677,-500.0,0.00010958,2]
[333444093,1722129032687,-500.0,0.00010958,2]
[333444094,1722129032696,-500.0,0.00010958,2]
[333444095,1722129032706,-500.0,0.00010958,2]
[333444096,1722129032715,-478.91,0.00010958,2]
[333444097,1722129032725,-500.0,0.00010958,2]
[333444098,1722129032735,-172.46,0.00010958,2]
[333444099,1722129032745,-586.03,0.00010958,2]
[333444100,1722129032754,-500.0,0.00010958,2]
[333444101,1722129032764,-640.08,0.00010958,2]
[333444102,1722129032774,-500.0,0.00010958,2]
[333444103,1722129032785,-352.86,0.00010958,2]
[333444104,1722129032795,-500.0,0.00010958,2]
[333444105,1722129032805,-509.98,0.00010958,2]
[333444106,1722129032815,-500.0,0.00010958,2]
[333444107,1722129032824,-500.0,0.00010958,2]
[333444108,1722129032834,-500.0,0.00010958,2]
[333444109,1722129032843,-500.0,0.00010958,2]
[333444110,1722129032854,-500.0,0.00010958,2]
[333444111,1722129032863,-500.0,0.00010958,2]
[333444112,1722129032872,-256.76162906,0.00010958,2]
[333444113,1722129032882,-201.19808536,0.00010958,2]
[333444114,1722129032891,-500.0,0.00010958,2]
[333444115,1722129032901,-500.0,0.00010958,2]
[333444116,1722129032911,-500.0,0.00010958,2]
[333444117,1722129032920,-500.0,0.00010958,2]
[333444118,1722129032930,-500.0,0.00010958,2]
[333444119,1722129032939,-500.0,0.00010958,2]
[333444120,1722129032949,-500.0,0.00010958,2]
[333444121,1722129032959,-500.0,0.00010958,2]
[333444122,1722129032968,-500.0,0.00010958,2]
[333444123,1722129032978,-500.0,0.00010958,2]
[333444124,1722129032988,-500.0,0.00010958,2]
[333444125,1722129032997,-500.0,0.00010958,2]
[333444126,1722129033007,-500.0,0.00010958,2]
[333444127,1722129033018,-500.0,0.00010958,2]
[333444128,1722129033031,-500.0,0.00010958,2]
[333444129,1722129033042,-500.0,0.00010958,2]
[333444130,1722129033052,-271.32,0.00010958,2]
[333444131,1722129033064,-500.0,0.00010958,2]
[333444132,1722129033075,-500.0,0.00010958,2]
[333444133,1722129033085,-500.0,0.00010958,2]
[333444134,1722129033096,-500.0,0.00010958,2]
[333444135,1722129033105,-500.0,0.00010958,2]
[333444136,1722129033115,-565.72,0.00010958,2]
[333444137,1722129033126,-500.0,0.00010958,2]
[333444138,1722129033135,-500.0,0.00010958,2]
[333444139,1722129033145,-500.0,0.00010958,2]
[333444140,1722129033155,-151.61,0.00010958,2]
[333444141,1722129033165,-500.0,0.00010958,2]
[333444142,1722129033174,-455.74,0.00010958,2]
[333444143,1722129033184,-500.0,0.00010958,2]
[333444144,1722129033193,-500.0,0.00010958,2]
[333444145,1722129033203,-500.0,0.00010958,2]
[333444146,1722129033212,-500.0,0.00010958,2]
[333444147,1722129033223,-500.0,0.00010958,2]
[333444148,1722129033232,-500.0,0.00010958,2]
[333444149,1722129033241,-500.0,0.00010958,2]
[333444150,1722129033251,-500.0,0.00010958,2]
[333444151,1722129033260,-500.0,0.00010958,2]
[333444152,1722129033270,-161.21,0.00010958,2]
[333444153,1722129033283,-500.0,0.00010958,2]
[333444154,1722129033293,-355.41,0.00010958,2]
[333444155,1722129033303,-602.74,0.00010958,2]
[333444156,1722129033312,-602.74,0.00010958,2]
[333444157,1722129033322,-602.74,0.00010958,2]
[333444158,1722129033332,-602.74,0.00010958,2]
[333444159,1722129033341,-602.74,0.00010958,2]
[333444160,1722129033350,-602.74,0.00010958,2]
[333444161,1722129033361,-550.19,0.00010958,2]
[333444162,1722129033370,-500.0,0.00010958,2]
[333444163,1722129033380,-500.0,0.00010958,2]
[333444164,1722129033389,-500.0,0.00010958,2]
[333444165,1722129033398,-500.0,0.00010958,2]
[333444166,1722129033408,-500.0,0.00010958,2]
[333444167,1722129033418,-443.11,0.00010958,2]
[333444168,1722129033428,-500.0,0.00010958,2]
[333444169,1722129033437,-500.0,0.00010958,2]
[333444170,1722129033446,-517.05,0.00010958,2]
[333444171,1722129033456,-500.0,0.00010958,2]
[333444172,1722129033466,-500.0,0.00010958,2]
[333444173,1722129033476,-500.0,0.00010958,2]
[333444174,1722129033486,-500.0,0.00010958,2]
[333444175,1722129033496,-500.0,0.00010958,2]
[333444176,1722129033506,-250.0,0.00010959,2]
[333444177,1722129033516,-5800.0,0.00010965,2]
[333444178,1722129033529,-5800.0,0.00010973,2]
[333444179,1722129033539,-5800.0,0.00010982,2]
[333444180,1722129033548,-169.94,0.00010984,2]
[333444181,1722129033560,-5800.0,0.00010991,2]
[333444182,1722129033571,-1829.0,0.00010996,2]
[333444183,1722129033581,-362.0,0.00010996,2]
[333444184,1722129033591,-1254.0,0.00010996,2]
[333444185,1722129033601,-1580.0,0.00010996,2]
[333444186,1722129033611,-445.0,0.00010996,2]
[333444187,1722129033621,-450.0,0.00010996,2]
[333444188,1722129033633,-810.0,0.00010996,2]
[333444189,1722129033643,-621.0,0.00010996,2]
[333444190,1722129033654,-2381.0,0.00010996,2]
[333444191,1722129033664,-550.0,0.00010996,2]
[333444192,1722129033674,-3283.0,0.00010996,2]
[333444193,1722129033684,-1994.0,0.00010996,2]
[333444194,1722129033694,-150.0,0.00010996,2]
[333444195,1722129033704,-509.671,0.00010996,2]
[333444196,1722129033715,-501.3,0.00010997,2]
[333444197,1722129033725,-716.01,0.00010997,2]
[333444198,1722129033735,-500.0,0.00010997,2]
[333444199,1722129033745,-500.0,0.00010997,2]
[333444200,1722129033755,-469.77,0.00010997,2]
[333444201,1722129033765,-483.22,0.00010997,2]
[333444202,1722129033775,-500.0,0.00010997,2]
[333444203,1722129033786,-500.0,0.00010997,2]
[333444204,1722129033796,-602.74,0.00010997,2]
[333444205,1722129033806,-7396.5897139,0.00010997,2]
[333444206,1722129033815,-1780.0625712,0.00010997,2]
[333444207,1722129033824,-1026.88761414,0.00010997,2]
[333444208,1722129033834,-501.3,0.00010998,2]
[333444209,1722129033843,-501.3,0.00010998,2]
[333444210,1722129033852,-501.3,0.00010998,2]
[333444211,1722129033862,-501.3,0.00010998,2]
[333444212,1722129033871,-716.01,0.00010998,2]
[333444213,1722129033880,-716.01,0.00010998,2]
[333444214,1722129033889,-716.01,0.00010998,2]
[333444215,1722129033898,-716.01,0.00010998,2]
[333444216,1722129033907,-500.0,0.00010998,2]
[333444217,1722129033917,-500.0,0.00010998,2]
[333444218,1722129033926,-500.0,0.00010998,2]
[333444219,1722129033935,-500.0,0.00010998,2]
[333444220,1722129033945,-533.17,0.00010998,2]
[333444221,1722129033954,-500.0,0.00010998,2]
[333444222,1722129033964,-500.0,0.00010998,2]
[333444223,1722129033973,-500.0,0.00010998,2]
[333444224,1722129033982,-500.0,0.00010998,2]
[333444225,1722129033991,-500.0,0.00010998,2]
[333444226,1722129034000,-500.0,0.00010998,2]
[333444227,1722129034009,-500.0,0.00010998,2]
[333444228,1722129034018,-500.0,0.00010998,2]
[333444229,1722129034028,-602.74,0.00010998,2]
[333444230,1722129034038,-602.74,0.00010998,2]
[333444231,1722129034047,-602.74,0.00010998,2]
[333444232,1722129034056,-602.74,0.00010998,2]
[333444233,1722129034066,-5920.9738454,0.00010998,2]
[333444234,1722129034075,-3991.6256675,0.00010998,2]
[333444235,1722129034084,-2970.59642694,0.00010999,2]
[333444236,1722129034093,-501.3,0.00010999,2]
[333444237,1722129034103,-501.3,0.00010999,2]
[333444238,1722129034113,-501.3,0.00010999,2]
[333444239,1722129034122,-501.3,0.00010999,2]
[333444240,1722129034131,-501.3,0.00010999,2]
[333444241,1722129034140,-501.3,0.00010999,2]
[333444242,1722129034149,-501.3,0.00010999,2]
[333444243,1722129034159,-501.3,0.00010999,2]
[333444244,1722129034168,-501.3,0.00010999,2]
[333444245,1722129034177,-501.3,0.00010999,2]
[333444246,1722129034187,-501.3,0.00010999,2]
[333444247,1722129034196,-716.01,0.00010999,2]
[333444248,1722129034205,-716.01,0.00010999,2]
[333444249,1722129034214,-716.01,0.00010999,2]
[333444250,1722129034223,-716.01,0.00010999,2]
[333444251,1722129034232,-501.3,0.00010999,2]
[333444252,1722129034242,-716.01,0.00010999,2]
[333444253,1722129034251,-501.36,0.00010999,2]
[333444254,1722129034260,-716.01,0.00010999,2]
[333444255,1722129034269,-716.01,0.00010999,2]
[333444256,1722129034281,-716.01,0.00010999,2]
[333444257,1722129034290,-716.01,0.00010999,2]
[333444258,1722129034299,-716.01,0.00010999,2]
[333444259,1722129034308,-716.01,0.00010999,2]
[333444260,1722129034317,-716.01,0.00010999,2]
[333444261,1722129034330,-716.17,0.00010999,2]
[333444262,1722129034339,-500.0,0.00010999,2]
[333444263,1722129034348,-500.0,0.00010999,2]
[333444264,1722129034358,-500.0,0.00010999,2]
[333444265,1722129034367,-500.0,0.00010999,2]
[333444266,1722129034376,-500.0,0.00010999,2]
[333444267,1722129034385,-500.0,0.00010999,2]
[333444268,1722129034395,-310.48,0.00010999,2]
[333444269,1722129034403,-500.0,0.00010999,2]
[333444270,1722129034413,-500.0,0.00010999,2]
[333444271,1722129034422,-500.0,0.00010999,2]
[333444272,1722129034432,-254.14064301,0.00010999,2]
[333444273,1722129034442,-500.0,0.00010999,2]
[333444274,1722129034451,-500.0,0.00010999,2]
[333444275,1722129034461,-500.0,0.00010999,2]
[333444276,1722129034470,-174.18,0.00010999,2]
[333444277,1722129034479,-17078.3950597,0.00010999,2]
[333444278,1722129034488,-602.74,0.00010999,2]
[333444279,1722129034498,-602.74,0.00010999,2]
[333444280,1722129034507,-602.74,0.00010999,2]
[333444281,1722129034516,-602.74,0.00010999,2]
[333444282,1722129034526,-602.74,0.00010999,2]
[333444283,1722129034537,-602.74,0.00010999,2]
[333444284,1722129034547,-602.74,0.00010999,2]
[333444285,1722129034557,-602.74,0.00010999,2]
[333444286,1722129034570,-602.74,0.00010999,2]
[333444287,1722129034579,-602.74,0.00010999,2]
[333444288,1722129034589,-602.74,0.00010999,2]
[333444289,1722129034784,-602.74,0.00010999,2]
[333444290,1722129034794,-602.74,0.00010999,2]
[333444291,1722129034804,-4993.78,0.00010999,2]
[333444292,1722129034813,-500.0,0.00010999,2]
[333444293,1722129034822,-500.0,0.00010999,2]
[333444294,1722129034831,-500.0,0.00010999,2]
[333444295,1722129034841,-500.0,0.00010999,2]
[333444296,1722129034852,-500.0,0.00010999,2]
[333444297,1722129034861,-500.0,0.00010999,2]
[333444298,1722129034870,-500.0,0.00010999,2]
[333444299,1722129034879,-500.0,0.00010999,2]
[333444300,1722129034889,-500.0,0.00010999,2]
[333444301,1722129034898,-371.8,0.00010999,2]
[333444302,1722129034908,-500.0,0.00010999,2]
[333444303,1722129034917,-500.0,0.00010999,2]
[333444304,1722129034927,-500.0,0.00010999,2]
[333444305,1722129034936,-494.69,0.00010999,2]
[333444306,1722129034946,-500.0,0.00010999,2]
[333444307,1722129034955,-500.0,0.00010999,2]
[333444308,1722129034964,-500.0,0.00010999,2]
[333444309,1722129034974,-500.0,0.00010999,2]
[333444310,1722129034983,-421.63,0.00010999,2]
[333444311,1722129034993,-500.0,0.00010999,2]
[333444312,1722129035002,-500.0,0.00010999,2]
[333444313,1722129035011,-432.45,0.00010999,2]
[333444314,1722129035020,-546.90130199,0.00010999,2]
[333444315,1722129035030,-500.0,0.00010999,2]
[333444316,1722129035039,-343.2259855,0.00010999,2]
[333444317,1722129035048,-623.89,0.00010999,2]
[333444318,1722129035058,-791.66,0.00010999,2]
[333444319,1722129035067,-791.66,0.00010999,2]
[333444320,1722129035077,-283.71104482,0.00010999,2]
[333444321,1722129035086,-791.66,0.00010999,2]
[333444322,1722129035095,-791.66,0.00010999,2]
[333444323,1722129035105,-791.66,0.00010999,2]
[333444324,1722129035114,-791.66,0.00010999,2]
[333444325,1722129035123,-791.66,0.00010999,2]
[333444326,1722129035133,-791.66,0.00010999,2]
[333444327,1722129035142,-791.66,0.00010999,2]
[333444328,1722129035152,-791.66,0.00010999,2]
[333444329,1722129035161,-791.66,0.00010999,2]
[333444330,1722129035171,-791.66,0.00010999,2]
[333444331,1722129035181,-791.66,0.00010999,2]
[333444332,1722129035191,-791.66,0.00010999,2]
[333444333,1722129035201,-791.66,0.00010999,2]
[333444334,1722129035211,-791.66,0.00010999,2]
[333444335,1722129035220,-791.66,0.00010999,2]
[333444336,1722129035230,-791.66,0.00010999,2]
[333444337,1722129035239,-791.66,0.00010999,2]
[333444338,1722129035248,-791.66,0.00010999,2]
[333444339,1722129035257,-791.66,0.00010999,2]
[333444340,1722129035267,-791.66,0.00010999,2]
[333444341,1722129035276,-791.66,0.00010999,2]
[333444342,1722129035286,-791.82,0.00010999,2]
[333444343,1722129035296,-5800.0,0.00010999,2]
[333444344,1722129035305,-500.0,0.00010999,2]
[333444345,1722129035315,-201.65,0.00010999,2]
[333444346,1722129035326,-500.0,0.00010999,2]
[333444347,1722129035336,-500.0,0.00010999,2]
[333444348,1722129035345,-30199.07614802,0.00011,2]
[333444349,1722129035361,-944.48844133,0.00011,2]
[333444350,1722129035399,-23886.31429624,0.00011,2]
[333444351,1722129035464,-415.98592689,0.00011,2]
[333444352,1722129035476,-298.62086198,0.00011,2]
[333444353,1722129035487,-11640.01424638,0.00011,2]
[333444354,1722129035498,-447.64794776,0.00011,2]
[333444356,1722129038004,-1936.04088029,0.00011,2]
[333444357,1722129038018,-500.0,0.00011,2]
[333444358,1722129038030,-446.9083603,0.00011,2]
[333444359,1722129038095,-459.01463883,0.00011,2]
[333444360,1722129038107,-36254.79713045,0.00011,2]
[333444361,1722129038119,-1085.8962,0.00011,2]
[333444362,1722129038130,-1615.2593727,0.00011,2]
[333444363,1722129038180,-2977.32631438,0.00011,2]
[333444364,1722129038192,-1476.38383009,0.00011,2]
[333444365,1722129038203,-1000.00000014,0.00011,2]
[333444366,1722129038214,-2295.3703341,0.00011,2]
[333444367,1722129038225,-743.53478048,0.00011,2]
[333444368,1722129038236,-618.95206319,0.00011,2]
[333444369,1722129038301,-463.4202856,0.00011,2]
[333444385,1722129039977,-1156.2,0.00011,2]
[333444386,1722129039989,-126302.94454902,0.00011,2]
[333444387,1722129039998,-43009.8850311,0.00011,2]
[333444388,1722129040011,-571.61863789,0.00011,2]
[333444389,1722129040071,-315103.92320447,0.00011,2]
[333444390,1722129040151,-455.28848318,0.00011,2]
[333444391,1722129040163,-9643.92039372,0.00011,2]
[333444392,1722129040175,-27495.55164395,0.00011,2]
[333444393,1722129040251,-517.0,0.00011,2]
[333444394,1722129040263,-3304.77660869,0.00011,2]
[333444395,1722129040274,-292.17355675,0.00011,2]
[333444396,1722129040286,-2109.97814077,0.00011,2]
[333444397,1722129040297,-5441.758176,0.00011,2]
[333444398,1722129040311,-8263.86627251,0.00011,2]
[333444399,1722129040322,-4710.83907877,0.00011,2]
[333444400,1722129040334,-4609.19369259,0.00011,2]
[333444401,1722129040346,-637.17304018,0.00011,2]
[333444402,1722129040358,-368.04046622,0.00011,2]
[333444403,1722129040371,-473.28023069,0.00011,2]
[333444404,1722129040384,-1917.30000001,0.00011,2]
[333444405,1722129040397,-6913.74211202,0.00011,2]
[333444406,1722129040408,-833.69717712,0.00011,2]
[333444407,1722129040419,-1207.82688201,0.00011,2]
[333444435,1722129043177,-499.44131326,0.00011,2]
[333444436,1722129043189,-772.1299993,0.00011,2]
[333444437,1722129043200,-716.30002,0.00011,2]
[333444438,1722129043212,-412.1753019,0.00011,2]
[333444439,1722129043255,-531.63488067,0.00011,2]
[333444440,1722129043341,-1212.09605983,0.00011,2]
[333444441,1722129043418,-2340.0,0.00011,2]
[333444442,1722129043429,-515.811067,0.00011,2]
[333444443,1722129043441,-475.33246739,0.00011,2]
[333444445,1722129046090,-3790.57174454,0.00011,2]
[333444446,1722129046101,-2733.80274664,0.00011,2]
[333444447,1722129046243,-741.97,0.00011,2]
[333444448,1722129046254,-268.25,0.00011,2]
[333444449,1722129046333,-7322.1963555,0.00011,2]
[333444450,1722129046345,-431.06113975,0.00011,2]
[333444509,1722129399498,630.0,0.0002,90]
[333444571,1722130216410,222.86,0.000149,31]
[333444579,1722130234300,-850.87,8.219e-05,2]
[333444580,1722130234309,-200.0,8.22e-05,2]
[333444581,1722130234319,-435.662197,9.968e-05,2]
[333444582,1722130234328,-1000.0,0.00010019,2]
[333444583,1722130234337,-250.0,0.00010031,2]
[333444584,1722130234347,-160.0513,0.0001045,2]
[333444585,1722130234357,-850.87,0.00010477,2]
[333444586,1722130234367,-300.0,0.00010496,2]
[333444587,1722130234376,-150.0,0.00010496,2]
[333444588,1722130234385,-111.60305613,0.00010497,2]
[333444589,1722130234397,-334.50747262,0.00010497,2]
[333444590,1722130234408,-2497.40548677,0.00010497,2]
[333444591,1722130234419,-802.69538565,0.00010497,2]
[333444592,1722130234431,-7444.41657045,0.00010497,2]
[333444593,1722130234443,-350.0,0.00010497,2]
[333444594,1722130234455,-3880.50321666,0.00010497,2]
[333444595,1722130234495,-522.58091288,0.00010497,2]
[333444596,1722130234506,-2799.99,0.00010497,2]
[333444597,1722130234596,-711.6,0.00010497,2]
[333444598,1722130234607,-287.22510096,0.00010497,2]
[333444599,1722130234618,-662.54834617,0.00010497,2]
[333444600,1722130234629,-4670.58140367,0.00010497,2]
[333444601,1722130234640,-1656.34148106,0.00010497,2]
[333444602,1722130234651,-399.12662878,0.00010497,2]
[333444610,1722130238453,-504.3514221,0.00010497,2]
[333444611,1722130238465,-3641.2040372,0.00010497,2]
[333444612,1722130238608,-701.70690542,0.00010497,2]
[333444613,1722130238638,-545.65622399,0.00010497,2]
[333444627,1722130240454,-27080.14264098,0.00010497,2]
[333444628,1722130240465,-2453.7405555,0.00010497,2]
[333444629,1722130240477,-661.0,0.00010497,2]
[333444630,1722130240578,-501.94143946,0.00010497,2]
[333444631,1722130240589,-1139.11643078,0.00010497,2]
[333444632,1722130240712,-23792.85499929,0.00010497,2]
[333444633,1722130240723,-327.78055685,0.00010497,2]
[333444634,1722130240734,-6261.11776499,0.00010497,2]
[333444635,1722130240749,-3108.12795836,0.00010497,2]
[333444813,1722130243329,-959.5,0.00010497,2]
[333444814,1722130243449,-2378.5307728,0.00010497,2]
[333444815,1722130243460,-507.53028692,0.00010497,2]
[333444816,1722130243572,-357.69482547,0.00010497,2]
[333444817,1722130243583,-460.00978,0.00010497,2]
[333444842,1722130246536,-1188.35,0.00010497,2]
[333444843,1722130247186,-487.94323696,0.00010497,2]
[333444844,1722130247197,-2570.41893268,0.00010497,2]
[333444845,1722130247209,-362.68407531,0.00010497,2]
[333444846,1722130247656,200.0,0.000149,31]
[333444852,1722130309689,12914.48230583,5e-05,14]
[333444853,1722130371444,155.0644165,5e-05,2]
[333444854,1722130399656,759.71069025,5e-05,3]
[333444855,1722130455015,171.29282623,6.061e-05,2]
[333444856,1722130467165,759.71069025,6.061e-05,3]
[333444857,1722130467675,670.45937297,6.061e-05,2]
[333444858,1722130595684,759.71069025,6.061e-05,3]
[333444859,1722130621863,5000.0,0.00015,30]
[333444860,1722130669238,-759.71069025,7.347e-05,3]
[333444861,1722130686612,-680.0,7.782e-05,2]
[333444862,1722130686635,-971.56245794,7.782e-05,2]
[333444863,1722130707512,-209.92,8.219e-05,2]
[333444864,1722130707535,-828.26,8.219e-05,2]
[333444865,1722130734611,-759.71069025,8.905e-05,3]
[333444866,1722130734633,-1934.33616156,8.905e-05,2]
[333444893,1722131432693,-786.84,8.219e-05,2]
[333444894,1722131432703,-300.0,8.904e-05,2]
[333444895,1722131432713,-759.71069025,8.905e-05,3]
[333444896,1722131432722,-7452.63297139,8.905e-05,2]
[333444897,1722131432734,-270.03107511,8.905e-05,2]
[333444898,1722131432746,-1132.74666839,8.905e-05,2]
[333444899,1722131432756,-1898.24,9.267e-05,2]
[333444900,1722131432766,-157.2,9.275e-05,2]
[333444901,1722131432776,-15221.78,9.452e-05,2]
[333444902,1722131432786,-800.0,9.645e-05,2]
[333444903,1722131432795,-250.0,9.69e-05,2]
[333444904,1722131432806,-883.91,9.696e-05,2]
[333444905,1722131432816,-200.0,9.706e-05,2]
[333444906,1722131432826,-150.0,9.753e-05,2]
[333444907,1722131432835,-150.0,9.781e-05,2]
[333444908,1722131432845,-6178.49,9.783e-05,2]
[333444909,1722131432854,-479.58,9.79e-05,2]
[333444910,1722131432864,-868.65,9.79e-05,2]
[333444911,1722131432873,-420.0,9.794e-05,2]
[333444912,1722131432882,-155.36,9.878e-05,2]
[333444913,1722131432890,-428.83,9.878e-05,2]
[333444914,1722131432900,-150.93,9.878e-05,2]
[333444915,1722131432910,-530.1,9.878e-05,2]
[333444916,1722131432919,-150.0,9.878e-05,2]
[333444917,1722131432929,-150.0,9.878e-05,2]
[333444918,1722131432938,-714.02,9.878e-05,2]
[333444919,1722131432948,-150.89,9.878e-05,2]
[333444920,1722131432958,-150.0,9.878e-05,2]
[333444921,1722131432967,-530.1,9.878e-05,2]
[333444922,1722131432976,-150.0,9.878e-05,2]
[333444923,1722131432985,-150.0,9.878e-05,2]
[333444924,1722131432995,-530.1,9.878e-05,2]
[333444925,1722131433004,-150.0,9.878e-05,2]
[333444926,1722131433014,-150.0,9.878e-05,2]
[333444927,1722131433023,-150.0,9.878e-05,2]
[333444928,1722131433033,-530.1,9.878e-05,2]
[333444929,1722131433043,-150.0,9.878e-05,2]
[333444930,1722131433054,-150.0,9.878e-05,2]
[333444931,1722131433064,-150.0,9.878e-05,2]
[333444932,1722131433075,-150.0,9.878e-05,2]
[333444933,1722131433085,-150.0,9.878e-05,2]
[333444934,1722131433094,-150.0,9.878e-05,2]
[333444935,1722131433105,-530.1,9.878e-05,2]
[333444936,1722131433115,-301.04,9.878e-05,2]
[333444937,1722131433126,-150.0,9.878e-05,2]
[333444938,1722131433137,-711.59,9.878e-05,2]
[333444939,1722131433148,-151.64,9.878e-05,2]
[333444940,1722131433159,-150.0,9.878e-05,2]
[333444941,1722131433170,-530.1,9.878e-05,2]
[333444942,1722131433180,-339.36,9.878e-05,2]
[333444943,1722131433194,-150.0,9.878e-05,2]
[333444944,1722131433205,-530.1,9.878e-05,2]
[333444945,1722131433215,-150.0,9.878e-05,2]
[333444946,1722131433226,-150.0,9.878e-05,2]
[333444947,1722131433236,-150.0,9.878e-05,2]
[333444948,1722131433247,-530.1,9.878e-05,2]
[333444949,1722131433257,-539.84,9.878e-05,2]
[333444950,1722131433267,-188.67572904,9.888e-05,2]
[333444951,1722131433277,-222.78,0.0001,2]
[333444952,1722131433287,-1000.0,0.0001,2]
[333444953,1722131433297,-530.01,0.00010192,2]
[333444954,1722131433307,-183.21699465,0.00010297,2]
[333444955,1722131433317,-709.11849533,0.00010387,2]
[333444956,1722131433326,-1725.4625,0.00010397,2]
[333444957,1722131433336,-3223.4662,0.00010397,2]
[333444958,1722131433347,-1311.6072,0.00010397,2]
[333444959,1722131433356,-4210.6695,0.00010397,2]
[333444960,1722131433367,-22291.1429,0.00010397,2]
[333444961,1722131433376,-40417.6158,0.00010397,2]
[333444962,1722131433386,-365.8084,0.00010397,2]
[333444963,1722131433396,-496.2989,0.00010397,2]
[333444964,1722131433409,-786.84,0.00010448,2]
[333444965,1722131433419,-147622.75317643,0.00010497,2]
[333444966,1722131433429,-3000.0,0.00010497,2]
[333444967,1722131433438,-350.0,0.000105,2]
[333444968,1722131433453,-150.0,0.000107,2]
[333444969,1722131433462,-255.0,0.00010759,2]
[333444970,1722131433471,-587.0,0.00010774,2]
[333444971,1722131433482,-388.93356843,0.00010794,2]
[333444972,1722131433492,-180.7603273,0.00010794,2]
[333444973,1722131433502,-1818.76372087,0.00010794,2]
[333444974,1722131433512,-155.0,0.00010794,2]
[333444975,1722131433521,-413.2960266,0.00010796,2]
[333444976,1722131433531,-1000.0,0.00010797,2]
[333444977,1722131433540,-3655.1834,0.00010797,2]
[333444978,1722131433549,-5043.3934,0.00010797,2]
[333444979,1722131433558,-1081.62260149,0.000108,2]
[333444980,1722131433568,-1123.24133959,0.000108,2]
[333444981,1722131433578,-598.35772331,0.00010835,2]
[333444982,1722131433588,-800.0,0.00010851,2]
[333444983,1722131433597,-527.627206,0.00010855,2]